Cogmind - Beta 10.2 --- EXPLORER MODE // 2021.03.16 @ 21:16:28 Player: Analote Result: Destroyed by G-67 Veteran with Electrolaser Performance ------------- Evolutions (5) 2500 Regions Visited (11) 2200 Robots Destroyed (122) 610 Value Destroyed (4556) 4556 Prototype IDs (7) 140 Alien Tech Used (0) 0 Bonus (2415) 2415 TOTAL SCORE: 12421 Bonus ------- High Alert Combat Kills 22 Met Warlord at Base 500 MAIN.C Attacked Warlord 500 Warlord Defense Kill 2060 Friendly Fire -667 Cogmind --------- Core Integrity 0/1000 Matter 300/300 Energy 100/100 System Corruption 6% Temperature Cool (9) Movement Core (50) Location -5/Warlord Parts ------- > --- POWER (2) -------- (None) > --- PROPULSION (3) --- (None) > --- UTILITY (9) ------ (None) > --- WEAPON (4) ------- (None) > --- INVENTORY (4) ---- (None) Peak State ------------ > --- POWER ------------ Angular Momentum Engine Light Fission Core > --- PROPULSION ------- Improved Treads Medium Treads Improved Medium Treads > --- UTILITY ---------- Improved Heat Shielding Improved Heat Sink Advanced Heat Sink Medium Battery Advanced Sensor Array Improved Target Analyzer Energy Filter Particle Charger Focal Shield > --- WEAPON ----------- Improved EM Shotgun High-powered Shock Rifle Phase Gun Vortex Shotgun > --- INVENTORY -------- Improved Lightning Gun Vortex Shotgun Improved EM Pulse Cannon Improved Proton Missile Launcher [Rating: 80] Favorites ----------- Power Heavy Ion Engine Engine Heavy Ion Engine Power Core Light Fission Core Propulsion Improved Treads Treads Improved Treads Utility Advanced Sensor Array Device Advanced Sensor Array Storage Medium Battery Processor Improved Target Analyzer Protection Utility Shielding Weapon High-powered Shock Rifle Energy Gun High-powered Shock Rifle Energy Cannon Improved EM Pulse Cannon Ballistic Cannon Slug Cannon Launcher Improved Proton Missile Launcher Build | -11 -10 -9 -8 -7 -6 -6 -6 -5 -5 -5 -5 ------- Run | Scr Mat Mat Mat Fac Fac Was Fac Fac Upp Upp War Slots Evolved 11 | . 1 2 2 2 2 . . 2 . . . Power 1 | . 1 . . . . . . . . . . Propulsion 1 | . . . 1 . . . . . . . . Utility 7 | . . 2 1 2 . . . 2 . . . Weapon 2 | . . . . . 2 . . . . . . Parts Attached 94 | 6 4 14 8 8 4 1 17 3 7 3 19 Power 12 | 1 2 3 . . . 1 2 . . . 3 Engine 6 | 1 1 3 . . . . 1 . . . . Core 6 | . 1 . . . . 1 1 . . . 3 Reactor . | . . . . . . . . . . . . Propulsion 14 | 2 . 2 2 . . . 3 . . 1 4 Treads 14 | 2 . 2 2 . . . 3 . . 1 4 Leg . | . . . . . . . . . . . . Wheel . | . . . . . . . . . . . . Hover . | . . . . . . . . . . . . Flight . | . . . . . . . . . . . . Utility 29 | 2 . 4 3 4 1 . 6 . 4 1 4 Device 22 | . . 1 3 4 1 . 5 . 3 1 4 Storage 5 | 1 . 3 . . . . 1 . . . . Processor 1 | . . . . . . . . . 1 . . Hackware . | . . . . . . . . . . . . Protection 1 | 1 . . . . . . . . . . . Artifact . | . . . . . . . . . . . . Weapon 39 | 1 2 5 3 4 3 . 6 3 3 1 8 Energy Gun 21 | 1 . 3 . 4 1 . 4 1 2 1 4 Energy Cannon 12 | . 2 2 3 . 2 . 1 . 1 . 1 Ballistic Gun . | . . . . . . . . . . . . Ballistic Cannon 3 | . . . . . . . 1 . . . 2 Launcher 3 | . . . . . . . . 2 . . 1 Special Weapon . | . . . . . . . . . . . . Impact Weapon . | . . . . . . . . . . . . Slashing Weapon . | . . . . . . . . . . . . Piercing Weapon . | . . . . . . . . . . . . Special Melee Weapon . | . . . . . . . . . . . . Unidentified Prototypes 7 | . . 3 . 1 . . . 1 . . 2 Parts Lost 39 | . . . . . . 9 . . . . 30 Power 4 | . . . . . . 1 . . . . 3 Propulsion 8 | . . . . . . 2 . . . . 6 Utility 15 | . . . . . . 5 . . . . 10 Weapon 12 | . . . . . . 1 . . . . 11 Highest Loss Streak 19 | . . . . . . 9 . . . . 19 Average Slot Usage (%) 91 | . 94 99 100 99 100 72 76 83 87 100 85 Engine 9 | . 21 12 16 14 12 4 5 5 5 5 4 Core 3 | . 3 7 . . . 3 5 5 5 5 4 Treads 18 | . 25 20 25 21 18 11 14 16 16 16 15 Device 23 | . . 4 16 27 25 19 20 27 30 38 31 Storage 9 | . 12 25 16 14 12 9 6 5 5 5 3 Processor 1 | . . . . . . . . . 1 5 4 Protection 3 | . 12 10 8 7 6 4 . . . . . Energy Gun 13 | . 12 8 12 12 12 12 17 14 15 13 14 Energy Cannon 5 | . 6 11 3 1 11 4 4 5 5 8 2 Naked Turns 25 | . . . . . . 21 . . . . 4 Heaviest Build 72 | 13 21 44 54 57 65 61 51 55 60 60 72 Greatest Support 81 | 40 40 46 69 68 68 68 81 81 81 81 81 Greatest Overweight (x) 4 | . . . . . . 3 1 . . 1 4 Average Overweight (x) . | . . . . . . . . . . . . Largest Inventory Capacity 10 | 8 8 10 10 10 10 10 4 4 4 4 4 Average Capacity 6 | 6 8 9 10 10 10 8 4 4 4 4 4 Most Carried 10 | 3 4 10 10 10 7 7 3 4 4 4 4 Average Carried 4 | . 1 5 9 7 6 5 1 3 3 3 1 Final Capacity 10 | 8 8 10 10 10 10 4 4 4 4 4 4 Final Carried 10 | 1 3 10 10 8 6 4 2 4 4 2 . Class Distribution -------------------- 48% | Hacker-Gunner 44% | Hacker-Mutant 3% | Hacker-Tank Dominant Class ---------------- Hacker-Mutant | -10/Materials Hacker-Mutant | -9/Materials Hacker-Mutant | -8/Materials Hacker-Mutant | -7/Factory Hacker-Tank | -6/Factory Hacker-Tank | -6/Waste Hacker-Gunner | -6/Factory Hacker-Gunner | -5/Factory Hacker-Gunner | -5/Upper Caves Hacker-Gunner | -5/Upper Caves Hacker-Gunner | -5/Warlord Resources | -11 -10 -9 -8 -7 -6 -6 -6 -5 -5 -5 -5 ----------- Run | Scr Mat Mat Mat Fac Fac Was Fac Fac Upp Upp War Matter Collected 1752 | 221 79 173 66 94 30 . 111 65 171 78 664 Remotely . | . . . . . . . . . . . . Salvage Created 5788 | . 321 588 821 1052 374 299 151 . 289 835 1058 Parts 227 | . 21 34 49 46 5 5 15 . 10 23 19 Haulers Intercepted 12 | . 1 3 3 4 1 . . . . . . Recyclers Shooed . | . . . . . . . . . . . . Parts Field Recycled . | . . . . . . . . . . . . Retrieved Matter . | . . . . . . . . . . . . Parts Self-Destructed . | . . . . . . . . . . . . Prevented . | . . . . . . . . . . . . Kills | -11 -10 -9 -8 -7 -6 -6 -6 -5 -5 -5 -5 ------- Run | Scr Mat Mat Mat Fac Fac Was Fac Fac Upp Upp War Combat Hostiles Destroyed 90 | . 7 7 13 18 5 1 4 . 6 12 17 Guns 51 | . 2 2 11 17 3 . 3 . 4 4 5 Cannons 24 | . 5 5 1 1 1 . . . 1 3 7 AOE 3 | . . . . . . . 1 . . 2 . Classes Destroyed 16 | . 4 3 2 3 . 1 . . . . 3 Worker 5 | . . . . 5 . . . . . . . Builder 1 | . . . . 1 . . . . . . . Hauler 12 | . 1 3 3 4 1 . . . . . . Operator 1 | . . . 1 . . . . . . . . Watcher 11 | . 2 3 3 2 1 . . . . . . Swarmer 14 | . 2 . 4 2 . . 2 . 3 . 1 Grunt 41 | . 5 2 2 11 5 . . . 2 6 8 Brawler 4 | . . 1 1 . . . . . . . 2 Duelist 6 | . . 1 . . . . . . . 4 1 Protector 2 | . . . . . . . . . . . 2 Sentry 12 | . . 3 5 2 . . . . . 2 . Specialist 1 | . . . . . . . . . . . 1 Hunter 3 | . . . 1 1 . . . . 1 . . Programmer 4 | . . . . 2 . . 2 . . . . Compactor 1 | . . . . . . 1 . . . . . Executioner 2 | . . . . . . . . . . . 2 Thug 2 | . . . . . . . . . . . 2 Best Kill Streak 7 | . 2 4 6 7 3 1 3 . 3 4 4 Combat Bots Only 5 | . 2 2 3 4 3 1 3 . 3 5 4 Max Kills in Single Turn 3 | . 1 1 1 3 1 1 1 . 1 2 2 Gunslinging . | . . . . . . . . . . . . Exploded 1 | . . . . . . . 1 . . 1 . Melee . | . . . . . . . . . . . . Uniques/NPCs Destroyed . | . . . . . . . . . . . . Combat | -11 -10 -9 -8 -7 -6 -6 -6 -5 -5 -5 -5 -------- Run | Scr Mat Mat Mat Fac Fac Was Fac Fac Upp Upp War Damage Taken 5918 | . 175 116 283 323 95 210 73 22 44 527 4050 Core 1220 | . 43 9 24 23 9 101 5 . . 42 964 Absorbed by Shields 216 | . . . . 141 36 39 . . . . . Core Remaining (%) 92 | 100 82 97 95 96 . . 86 . . . . Volleys Fired 286 | . 37 31 42 58 13 10 5 2 9 20 59 Largest 4 | . 2 2 2 2 4 4 3 4 4 4 4 Hottest 320 | . 100 128 160 160 320 295 209 220 234 315 277 Shots Fired 645 | . 56 62 84 116 52 37 11 8 31 80 108 Gun 445 | . 34 25 78 110 26 27 6 4 22 51 62 Cannon 196 | . 22 37 6 6 26 10 5 2 9 29 44 Launcher 4 | . . . . . . . . 2 . . 2 Special . | . . . . . . . . . . . . Kinetic 37 | . . . . . . . . . . . 37 Thermal 469 | . 56 62 84 116 52 37 3 . . 29 30 Explosive . | . . . . . . . . . . . . Electromagnetic 128 | . . . . . . . 8 8 31 51 30 Entropic 11 | . . . . . . . . . . . 11 Robot Hit Streak 80 | . 22 9 28 56 19 80 11 . 21 24 41 Robot Miss Streak 3 | . 2 3 1 3 3 1 . . 2 2 1 Penetration Max . | . . . . . . . . . . . . Secondary Targets 3 | . . . 2 1 . . . . . . . Max Gunslinging Chain 1 | . . . 1 1 . . . . . . . Shots Hit Robots 547 | . 50 41 73 114 42 36 7 . 23 61 100 Core Hits 256 | . 17 19 31 74 26 6 6 . 8 26 43 Critical Hits 9 | . 1 . . . . . . . . 3 5 Critical Kills 4 | . 1 . . . . . . . . . 3 Critical Parts Destroyed 3 | . . . . . . . . . . 2 1 Melee Attacks . | . . . . . . . . . . . . Impact . | . . . . . . . . . . . . Slashing . | . . . . . . . . . . . . Piercing . | . . . . . . . . . . . . Sneak Attacks . | . . . . . . . . . . . . Combat Hostiles . | . . . . . . . . . . . . Follow-up Attacks . | . . . . . . . . . . . . Damage Inflicted 14586 | . 629 700 1257 2903 878 1007 181 3 550 1941 4537 Guns 9233 | . 333 239 1152 2705 591 780 110 . 419 1029 1875 Cannons 4347 | . 296 461 105 124 287 227 13 . 131 569 2134 Explosions 1006 | . . . . 74 . . 58 3 . 343 528 Melee . | . . . . . . . . . . . . Ramming . | . . . . . . . . . . . . Kinetic 2007 | . . . . . . . . . . . 2007 Thermal 9085 | . 629 700 1257 2829 878 1007 121 . . 966 698 Explosive . | . . . . . . . . . . . . Electromagnetic 2669 | . . . . 74 . . 60 3 550 975 1007 Impact . | . . . . . . . . . . . . Slashing . | . . . . . . . . . . . . Piercing . | . . . . . . . . . . . . Entropic 825 | . . . . . . . . . . . 825 Highest Corruption 6 | . . . . . . . . . . . 6 Average Corruption 3 | . . . . . . . . . . . 3 Corruption Purged . | . . . . . . . . . . . . Effects 4 | . . . . . . . . . . . 4 Message Errors 1 | . . . . . . . . . . . 1 Matter Fused 2 | . . . . . . . . . . . 2 Targeting Errors 1 | . . . . . . . . . . . 1 Overload Shots . | . . . . . . . . . . . . Overflow Damage 190 | . . . . . . . . . 50 19 121 Projectiles 190 | . . . . . . . . . 50 19 121 Explosions . | . . . . . . . . . . . . Melee . | . . . . . . . . . . . . Knockbacks 14 | . . . . . . . . . . . 14 Impact . | . . . . . . . . . . . . Kinetic 11 | . . . . . . . . . . . 11 Secondary 3 | . . . . . . . . . . . 3 Self-Inflicted Damage 136 | . . . . 49 . . . . . 87 . Shots 5 | . . . . 2 . . . . . 3 . Rammed . | . . . . . . . . . . . . Targets Rammed . | . . . . . . . . . . . . Kicked . | . . . . . . . . . . . . Crushed . | . . . . . . . . . . . . Highest Temperature 638 | . 426 426 30 2 336 126 410 171 537 638 430 Average Temperature 150 | . 131 126 8 2 122 57 153 88 216 266 133 Received Heat Transfer 1882 | . 114 75 162 160 66 . . . . . 1305 Effects 46 | . 5 3 . . 1 . 4 . 9 20 4 Shutdowns 21 | . 2 1 . . 1 . 1 . 6 9 1 Energy Bleed 3 | . 1 . . . . . . . 1 1 . Interference 13 | . 1 1 . . . . 3 . . 6 2 Matter Decay 3 | . . 1 . . . . . . 1 1 . Short Circuit 4 | . 1 . . . . . . . 1 1 1 Damage (major) 2 | . . . . . . . . . . 2 . Siege Activations . | . . . . . . . . . . . . Robots Corrupted 9 | . . . . . . . . . 1 3 5 Combat Hostiles 9 | . . . . . . . . . 1 3 5 Parts Fried 25 | . . . . . . . . . 8 10 7 Impact Corruptions . | . . . . . . . . . . . . Robots Melted 5 | . . . 1 2 1 1 . . . . . Combat Hostiles 3 | . . . 1 . 1 1 . . . . . Parts Melted 40 | . 3 3 12 12 9 . . . . 1 . Heat Transferred 17883 | . 1404 1456 2716 6225 1875 2146 124 . . 1105 832 Parts Sabotaged . | . . . . . . . . . . . . Parts Stolen . | . . . . . . . . . . . . Parts Stripped . | . . . . . . . . . . . . Power Chain Reactions 7 | . . . . 1 . . 1 . . 4 1 Missiles Intercepted . | . . . . . . . . . . . . Alert | -11 -10 -9 -8 -7 -6 -6 -6 -5 -5 -5 -5 ------- Run | Scr Mat Mat Mat Fac Fac Was Fac Fac Upp Upp War Peak Influence 420 | . 137 241 401 420 233 70 95 . . . . Initial 90 | . . 41 33 75 90 55 . . . . . Average 103 | . 41 105 194 182 162 41 24 . . . . Maximum Alert Level 2 | . . 1 2 2 1 . . . . . . Low Security (%) 82 | 100 100 90 45 67 71 100 100 100 . . . Level 1 15 | . . 9 47 25 28 . . . . . . Level 2 2 | . . . 6 6 . . . . . . . Level 3 . | . . . . . . . . . . . . Level 4 . | . . . . . . . . . . . . Level 5 . | . . . . . . . . . . . . High Security . | . . . . . . . . . . . . Max Security . | . . . . . . . . . . . . Squads Dispatched 10 | . . . . 6 1 . 2 . . 1 . Investigation 1 | . . . . 1 . . . . . . . Extermination 3 | . . . . 1 . . 2 . . . . Reinforcement 4 | . . . . 3 1 . . . . . . Assault 1 | . . . . . . . . . . 1 . Garrison 1 | . . . . 1 . . . . . . . Intercept . | . . . . . . . . . . . . Construction Impeded . | . . . . . . . . . . . . Haulers Reinforced 3 | . . . . 2 1 . . . . . . Stealth | -11 -10 -9 -8 -7 -6 -6 -6 -5 -5 -5 -5 --------- Run | Scr Mat Mat Mat Fac Fac Was Fac Fac Upp Upp War Distress Signals 7 | . 2 2 2 1 . . . . . . . Communications Jammed . | . . . . . . . . . . . . Distress Signals . | . . . . . . . . . . . . Times Spotted 166 | . 12 14 20 23 6 6 5 . 6 12 62 Peak Tracking Total 16 | . 4 3 4 4 2 5 2 . 2 5 16 Tactical Retreats 7 | . 1 . 1 . . . . . . . 5 Traps | -11 -10 -9 -8 -7 -6 -6 -6 -5 -5 -5 -5 ------- Run | Scr Mat Mat Mat Fac Fac Was Fac Fac Upp Upp War Traps Triggered 5 | . 1 2 . . 1 . . 1 . . . Indirectly 1 | . . . . . . . . 1 . . . Trap Hack Attempts . | . . . . . . . . . . . . Triggered . | . . . . . . . . . . . . Disarmed . | . . . . . . . . . . . . Reprogrammed . | . . . . . . . . . . . . Reused . | . . . . . . . . . . . . Traps Extracted . | . . . . . . . . . . . . Installed . | . . . . . . . . . . . . Triggered 18 | . . . . . . . . . . . 18 Machines | -11 -10 -9 -8 -7 -6 -6 -6 -5 -5 -5 -5 ---------- Run | Scr Mat Mat Mat Fac Fac Was Fac Fac Upp Upp War Machines Disabled 6 | . . 1 2 2 1 . . . . . . Max in Single Turn 2 | . . 1 1 2 1 . . . . . . Machines Sabotaged . | . . . . . . . . . . . . Garrisons Compromised . | . . . . . . . . . . . . Overloaded Fab Kills . | . . . . . . . . . . . . Fab Network Shutdowns . | . . . . . . . . . . . . Hacking | -11 -10 -9 -8 -7 -6 -6 -6 -5 -5 -5 -5 --------- Run | Scr Mat Mat Mat Fac Fac Was Fac Fac Upp Upp War Machines Accessed 6 | . 1 1 1 1 . . 1 . . . 1 Terminals 2 | . 1 . 1 . . . . . . . . Fabricators 1 | . . . . . . . 1 . . . . Repair Stations 2 | . . 1 . 1 . . . . . . . Recycling Units . | . . . . . . . . . . . . Scanalyzers . | . . . . . . . . . . . . Garrison Access . | . . . . . . . . . . . . Total Hacks 11 | . 1 2 1 3 . . 3 . . . 1 Successful 8 | . 1 2 1 2 . . 1 . . . 1 Failed 3 | . . . . 1 . . 2 . . . . Catastrophic . | . . . . . . . . . . . . Database Lockouts . | . . . . . . . . . . . . Manual . | . . . . . . . . . . . . Terminals 2 | . 1 . 1 . . . . . . . . Fabricators 3 | . . . . . . . 3 . . . . Repair Stations 5 | . . 2 . 3 . . . . . . . Recycling Units . | . . . . . . . . . . . . Scanalyzers . | . . . . . . . . . . . . Garrison Access . | . . . . . . . . . . . . Terminal Hacks 3 | . 1 . 1 . . . . . . . 1 Record 1 | . . . 1 . . . . . . . . Open Door 1 | . . . . . . . . . . . 1 Dispatch Records 1 | . 1 . . . . . . . . . . Fabricator Hacks 1 | . . . . . . . 1 . . . . Build 1 | . . . . . . . 1 . . . . Repair Station Hacks 4 | . . 2 . 2 . . . . . . . Scan Component 2 | . . 1 . 1 . . . . . . . Repair 2 | . . 1 . 1 . . . . . . . Recycling Unit Hacks . | . . . . . . . . . . . . Scanalyzer . | . . . . . . . . . . . . Garrison Access Hacks . | . . . . . . . . . . . . Unauthorized Hacks . | . . . . . . . . . . . . Terminals . | . . . . . . . . . . . . Fabricators . | . . . . . . . . . . . . Repair Stations . | . . . . . . . . . . . . Recycling Units . | . . . . . . . . . . . . Scanalyzers . | . . . . . . . . . . . . Garrison Access . | . . . . . . . . . . . . Data Cores Recovered 1 | . . . 1 . . . . . . . . Used . | . . . . . . . . . . . . Hacking Detections 4 | . 1 . 1 1 . . 1 . . . . Full Trace Events 1 | . . . . 1 . . . . . . . Feedback Events . | . . . . . . . . . . . . Feedback Blocked . | . . . . . . . . . . . . Robot Schematics Acquired . | . . . . . . . . . . . . Robots Built 1 | . . . . . . . 1 . . . . Matter 153 | . . . . . . . 153 . . . . Time 81 | . . . . . . . 81 . . . . Total Robot Build Rating 1 | . . . . . . . 1 . . . . Part Schematics Acquired . | . . . . . . . . . . . . Parts Built . | . . . . . . . . . . . . Matter . | . . . . . . . . . . . . Time . | . . . . . . . . . . . . Total Part Build Rating . | . . . . . . . . . . . . Parts Repaired 2 | . . 1 . 1 . . . . . . . Time 35 | . . 16 . 19 . . . . . . . Parts Recycled . | . . . . . . . . . . . . Recycled Matter . | . . . . . . . . . . . . Retrieved Matter . | . . . . . . . . . . . . Retrieved Components . | . . . . . . . . . . . . Parts Scanalyzed . | . . . . . . . . . . . . Part Schematics Acquired . | . . . . . . . . . . . . Parts Damaged . | . . . . . . . . . . . . Bothacking | -11 -10 -9 -8 -7 -6 -6 -6 -5 -5 -5 -5 ------------ Run | Scr Mat Mat Mat Fac Fac Was Fac Fac Upp Upp War Used RIF Installer . | . . . . . . . . . . . . Robots Hacked . | . . . . . . . . . . . . Non-combat . | . . . . . . . . . . . . Combat . | . . . . . . . . . . . . Robot Hacks Applied . | . . . . . . . . . . . . Relay Couplers Released . | . . . . . . . . . . . . Robots Rewired . | . . . . . . . . . . . . Allies Hacked . | . . . . . . . . . . . . Hacks Repelled . | . . . . . . . . . . . . Allies | -11 -10 -9 -8 -7 -6 -6 -6 -5 -5 -5 -5 -------- Run | Scr Mat Mat Mat Fac Fac Was Fac Fac Upp Upp War Total Allies 1 | . . . . . . . 1 . . . . Largest Group 1 | . . . . . . . 1 1 1 1 . Highest-Rated Group 8 | . . . . . . . 8 8 8 8 . Highest-Rated Ally 8 | . . . . . . . 8 8 8 8 . Total Orders . | . . . . . . . . . . . . Ally Attacks . | . . . . . . . . . . . . Total Damage . | . . . . . . . . . . . . Kills . | . . . . . . . . . . . . Allies Corrupted . | . . . . . . . . . . . . Allies Melted . | . . . . . . . . . . . . Intel | -11 -10 -9 -8 -7 -6 -6 -6 -5 -5 -5 -5 ------- Run | Scr Mat Mat Mat Fac Fac Was Fac Fac Upp Upp War Robot Analysis Total . | . . . . . . . . . . . . Derelict Logs Recovered 2 | . . . . . . . . . 2 . . Drone Launches . | . . . . . . . . . . . . Drone Recoveries . | . . . . . . . . . . . . Exploration | -11 -10 -9 -8 -7 -6 -6 -6 -5 -5 -5 -5 ------------- Run | Scr Mat Mat Mat Fac Fac Was Fac Fac Upp Upp War Turns Passed 7118 | 81 614 566 616 929 185 116 803 240 1026 587 1355 Spaces Moved 3714 | 48 277 261 295 444 80 82 406 141 613 312 755 Core 126 | 8 . . . . . 55 . . . . 63 Treads 3588 | 40 277 261 295 444 80 27 406 141 613 312 692 Legs . | . . . . . . . . . . . . Wheels . | . . . . . . . . . . . . Hover . | . . . . . . . . . . . . Flight . | . . . . . . . . . . . . Fastest Speed 50 | 50 160 160 155 155 155 50 160 160 160 160 50 Average Speed 156 | 141 160 160 155 155 155 92 162 160 160 161 152 Slowest Speed 250 | 160 160 160 160 155 155 200 180 160 160 180 250 Overloaded Moves . | . . . . . . . . . . . . Propulsion Burnouts . | . . . . . . . . . . . . Robots Hopped . | . . . . . . . . . . . . Cave-ins Triggered . | . . . . . . . . . . . . Exploration Rate (%) 37 | 4 61 44 36 15 3 75 15 5 69 48 78 Regions Visited 11 Branch Regions 3 Pre-discovered Areas . | . . . . . . . . . . . . Known Exits Taken 9 | 1 1 1 1 1 . . 1 1 1 1 . Unknown Exits Taken . | . . . . . . . . . . . . Scrap Searched 1 | . . . . . . . . . 1 . . Spaces Dug . | . . . . . . . . . . . . Terrain Destroyed 43 | . . . 2 2 . . 7 . . 24 8 Melee . | . . . . . . . . . . . . Projectile 18 | . . . 2 . . . . . . 8 8 AOE 25 | . . . . 2 . . 7 . . 16 . Terrain Rammed . | . . . . . . . . . . . . Walls Destroyed . | . . . . . . . . . . . . Machines Disabled . | . . . . . . . . . . . . Actions | -11 -10 -9 -8 -7 -6 -6 -6 -5 -5 -5 -5 --------- Run | Scr Mat Mat Mat Fac Fac Was Fac Fac Upp Upp War Total 4456 | 61 392 345 369 546 104 93 541 149 639 347 870 Wait 254 | 1 67 20 13 28 5 . 99 . . 5 16 Move 3704 | 47 276 260 294 443 80 81 405 140 612 311 755 Hop . | . . . . . . . . . . . . Pick Up 85 | 7 6 15 7 5 1 1 14 3 7 3 16 Fast Attach . | . . . . . . . . . . . . Attach 55 | 6 2 3 2 3 2 . 15 . 4 . 18 Detach . | . . . . . . . . . . . . Swap 39 | . 2 11 6 5 2 1 2 3 3 3 1 Drop 33 | . 2 5 5 4 1 . 1 1 4 5 5 Fire 286 | . 37 31 42 58 13 10 5 2 9 20 59 Melee . | . . . . . . . . . . . . Ram . | . . . . . . . . . . . . Kick . | . . . . . . . . . . . . Crush . | . . . . . . . . . . . . Escape Stasis . | . . . . . . . . . . . . Rewire . | . . . . . . . . . . . . Trap . | . . . . . . . . . . . . Miscellaneous . | . . . . . . . . . . . . Route ------- -11/Scrapyard -10/Materials (discovered 3 exits: *Mat / *Min x2) -9/Materials (discovered 2 exits: *Mat / *Min) -8/Materials -7/Factory -6/Factory -6/Waste -6/Factory -5/Factory -5/Upper Caves -5/Upper Caves -5/Warlord History --------- Turn | Location | Event 14 | -11/Scrapyard | Identified exit to Materials 14 | -11/Scrapyard | Discovered exit to Materials (range 15) 82 | -11/Scrapyard | Entered Materials 82 | -10/Materials | Evolved 1 slot: Power x1 88 | -10/Materials | Identified exit to Mines 88 | -10/Materials | Discovered exit to Mines (range 16) 312 | -10/Materials | Build established: Hacker-Mutant 361 | -10/Materials | Discovered exit to Mines (range 9) 677 | -10/Materials | Identified exit to Materials 677 | -10/Materials | Discovered exit to Materials (range 11) 696 | -10/Materials | Entered another Materials area 696 | -9/Materials | Evolved 2 slots: Utility x2 897 | -9/Materials | Repaired Particle Cannon 1064 | -9/Materials | Identified exit to Mines 1064 | -9/Materials | Discovered exit to Mines (range 12) 1238 | -9/Materials | Identified exit to Materials 1238 | -9/Materials | Discovered exit to Materials (range 15) 1262 | -9/Materials | Entered another Materials area 1262 | -8/Materials | Evolved 2 slots: Propulsion x1, Utility x1 1840 | -8/Materials | Identified exit to Factory 1840 | -8/Materials | Discovered exit to Factory (range 13) 1878 | -8/Materials | Entered Factory 1878 | -7/Factory | Evolved 2 slots: Utility x2 2015 | -7/Factory | Repaired Imp. Heat Sink 2642 | -7/Factory | Garrison activated, responded to threat 2776 | -7/Factory | Identified exit to Factory 2776 | -7/Factory | Discovered exit to Factory (range 7) 2807 | -7/Factory | Entered another Factory area 2807 | -6/Factory | Evolved 2 slots: Weapon x2 2992 | -6/Factory | Sucked down chute 2992 | -6/Factory | Entered Waste 3024 | -6/Waste | Spotted C-40 Crusher 3038 | -6/Waste | Destroyed C-40 Crusher 3042 | -6/Waste | Spotted C-40 Crusher 3048 | -6/Waste | Spotted C-40 Crusher 3059 | -6/Waste | Spotted C-40 Crusher 3065 | -6/Waste | Crushed by Compactor (1 part destroyed, 2 dropped) 3068 | -6/Waste | Crushed by Compactor (1 part destroyed, 1 dropped) 3071 | -6/Waste | Crushed by Compactor (1 part destroyed, 1 dropped) 3074 | -6/Waste | Crushed by Compactor (1 part destroyed, 1 dropped) 3075 | -6/Waste | Spotted C-40 Crusher 3077 | -6/Waste | Spotted C-40 Crusher 3077 | -6/Waste | Crushed by Compactor (1 part destroyed, 1 dropped) 3081 | -6/Waste | Crushed by Compactor (1 part destroyed, 1 dropped) 3085 | -6/Waste | Crushed by Compactor (1 part destroyed) 3087 | -6/Waste | Crushed by Compactor (1 part destroyed) 3101 | -6/Waste | Identified exit to Factory 3101 | -6/Waste | Discovered exit to Factory (range 15) 3108 | -6/Waste | Entered Factory 3118 | -6/Factory | Lost 9 parts (1p2n5u1w) 3767 | -6/Factory | Fabricated R-06 Scavenger (x1) 3838 | -6/Factory | Identified exit to Factory 3838 | -6/Factory | Discovered exit to Factory (range 15) 3892 | -6/Factory | Build established: Hacker-Gunner 3911 | -6/Factory | Entered another Factory area 3911 | -5/Factory | Accompanied by 1 ally 3911 | -5/Factory | Evolved 2 slots: Utility x2 4125 | -5/Factory | Identified exit to Upper Caves 4125 | -5/Factory | Discovered exit to Upper Caves (range 15) 4151 | -5/Factory | Entered Upper Caves 4151 | -5/Upper Caves | Accompanied by 1 ally 4462 | -5/Upper Caves | Learned location of 1 exit from Factory 5017 | -5/Upper Caves | Identified exit to Upper Caves 5017 | -5/Upper Caves | Discovered exit to Upper Caves (range 6) 5177 | -5/Upper Caves | Entered another Upper Caves area 5177 | -5/Upper Caves | Accompanied by 1 ally 5434 | -5/Upper Caves | Attracted the attention of an 0b10 outpost 5680 | -5/Upper Caves | Attracted the attention of an 0b10 checkpoint 5718 | -5/Upper Caves | Identified exit to Warlord 5718 | -5/Upper Caves | Discovered exit to Warlord (range 6) 5764 | -5/Upper Caves | Entered Warlord 6212 | -5/Warlord | Met Warlord 6237 | -5/Warlord | Warlord's base attacked by MAIN.C 6536 | -5/Warlord | Found Prototype Energy Gun 6537 | -5/Warlord | Identified Vortex Shotgun 6540 | -5/Warlord | Found Vortex Shotgun 6587 | -5/Warlord | Warlord forces counterattacked 6773 | -5/Warlord | Spotted Executioner 6774 | -5/Warlord | Spotted Executioner 6775 | -5/Warlord | Destroyed Executioner 6838 | -5/Warlord | Destroyed Executioner 6861 | -5/Warlord | Spotted Striker 6884 | -5/Warlord | Lost 19 parts (2p3n6u8w) 6933 | -5/Warlord | Core integrity fell below 50% 6973 | -5/Warlord | Lost 5 parts (1p4u) 7002 | -5/Warlord | Found Prototype Ballistic Cannon 7003 | -5/Warlord | Identified Hvy. Autocannon 7084 | -5/Warlord | Spotted Executioner 7114 | -5/Warlord | Core integrity fell below 20% 7119 | -5/Warlord | Destroyed by G-67 Veteran with Electrolaser Last Messages --------------- 07111_ Acquired 18 matter. 07111_ G-50 Soldier knocked back. 07112_ Arm. Medium Treads destroyed. 07113_ Slug penetrates G-50 Soldier. 07113_ G-50 Soldier destroyed. 07113_ Penetrated by Slug. 07113_ Dropped Adv. Cooling System. 07113_ Penetrated by Slug. 07113_ Critical hit. 07113_ Arm. Medium Treads destroyed. 07114_ Acquired 46 matter. 07114_ Dropped Adv. Heat Sink. 07115_ Dropped Mic. Fission Core. 07115_ Knocked back. 07115_ Dropped Rnf. Fission Core. 07116_ Slug penetrates G-50 Soldier. 07116_ Penetrated by Slug. 07116_ Slug penetrates Wall. 07116_ Penetrated by Slug. 07118_ Knocked back. Map ----- +----------------------------------------------------+ | ###??????????????????????????????????????????????? | | ""#??????????????????????????????????????????????? | | ""#??????????????????????????????????????????????? | | ""#??????????????????????????????????????????????? | | ""#??????????????????????????????????????????????? | | ""#??????????????????????????????????????????????? | | ""#??????????????###+##??????????????????????????? | | ""#??????????????# ??????????????????????????? | | "#?????????????? ??????????????????????????? | | #?????????????? ??????????????????????????? | | #??????????????? ??????????????????????????? | | #??????????????? ??????????????????????????? | | ++#???????????????# #??????????????????????# ??? | | #???????????????# #??????????????????????# ?? | | #???????????????# #??????????????????????? ? | | #??###########??# "???????????????????????? # | | ###??# #??# #????????????????????????? | | ?????# #??# #??????"???????????????????# | | #????# #??# #??????""#?????????????????# | | #????# #??# #?????#""#?????????????????? | | #????# #### #?????#""#?????????????????? | | #????# ##;; #######""#####?????????????? | | ###### # %% *#=**""%%%"############??? | | # + ; %= *!!=!%""=[!!%%*""""""""#??? | | # #########+;; ] !!!=*g""!!%=[%=%"""""""#?## | | + #????#; == %[%%!@[%[h%**]=%]*%!*%[%=!###= | | # #????## !%% ! =[%%*=%g%!%%*x=%!%![%=!%[==% | | # ####### ==[=! %!!!!=[%|hE!%%=*%=%!!=!%*%%[*% | | %[!=% %%%!==%!%g%%[=%!!==/*!!==/#### | | =!#%=/%!=%!%!!==""=%%=["["%"""!"/#??# | | %#=!% %!=!!;%[! "!=%""""""""""""#??? | | ########### #! == #! ""%[*"############??? | | # # ;;## ;;;####""#####?????????????# | | # # ###??#""#????????????????## | | # # ##????#""#????????????????# | | # # #??????""#???????????????## | | # + ^ #????????????????????????# % | | # # #"#????????????????????????# ! | | # # ##?????????????????????????# ! | | # # """ #??????????????????????????#=% | | ###/####### """ #?????????????????????????## | | ?## #?????# """ #????????????????????????##^ | | # # ##????# ^ ########?????????????????# | | #????# ##"""""#?????????????##### "# | | ####### """ ##"""""#????????????## # "## | | ##!! # """ # " ""#????????????# #? | | # #### + """ # """#????????????# ## | | ?##??#& # + " ""#????????????# #" # | | ?????#!! # ^ ##"""""#????????????#####" # | | ?????####?# """ ##"""""#????????????????# ## | +----------------------------------------------------+ Best States ------------- Heat Dissipation 109 Energy Generation 32 Energy Capacity 860 Matter Stores 300 Matter Capacity 300 Sight Range 16 Robot Scan Range 16 Terrain Scan Density 10 Heat Shielding 100 Resistance: KI 55 Resistance: TH 35 Resistance: EX 35 Resistance: EM 35 Resistance: I 35 Resistance: S 35 Resistance: P 35 Utility Shielding 33 Evasion (%) 50 Target Analysis 6 Recoil Reduction 3 Energy Filtering 30 Particle Charging 15 Offensive Hacking 20 Item Schematics ----------------- None Robot Schematics ------------------ None Fabricated ------------ R-06 Scavenger | x1 | -6/Factory | Preloaded Alien Tech Used ----------------- None Achievements -------------- None Challenges ------------ None Game ------ Seed DroneWeaponFlail Manual? 0 Play Time 00:44:25 Cumulative 34.0 hours Start 2021.03.16 @ 20:33:07 End 2021.03.16 @ 21:16:28 Sessions 1 Manual Loads 0 Difficulty Explorer Special Mode None Game No. 44 Rogue 0 Adventurer 0 Explorer 44 Win Type - Total 0 Types 0/0/0/0/0/0/0/0/0 Lore% 32 Gallery% 46 Achievement% 37 Wizard Run 0 Options --------- ASCII 0 Keyboard 0 Movement Mouse Keybinds 0 Fullscreen 2 Font 12/Proggy Map View 83x54 Tactical HUD 1 Map Filters NONE Filters NONE Steam 1 RUN: f15ea7ac-6445-402d-841b-104f065fe148